[Event "GER-chT Youth Countries 2020"]
[Site "Berlin"]
[Date "2020.10.04"]
[Round "7"]
[White "Braeutigam, Katerina"]
[Black "Werner, Florin"]
[Result "1-0"]
[ECO "C14"]
[WhiteElo "1744"]
[BlackElo "1481"]
[Annotator "NA"]
[PlyCount "49"]
[EventDate "2020.09.30"]
[EventType "team-tourn"]
[EventRounds "7"]
[EventCountry "GER"]
[SourceTitle "playchess.com"]
[Source "ChessBase"]
[SourceQuality "1"]
[TimeControl "30/5400+30:0"]

1. e4 {[%emt 0:00:00]} e6 {[%emt 0:00:00]} 2. d4 {[%emt 0:00:00]} d5 {[%emt 0:00:00]} 3. Nc3 {[%emt 0:00:00]} Nf6 {[%emt 0:00:00]} 4. Bg5 {[%emt 0:00:00]} Be7 {[%emt 0:00:00]} 5. e5 {[%emt 0:00:20]} Nfd7 {[%emt 0:00:00]} 6. Bxe7 {[%emt 0:00:08]} Qxe7 {[%emt 0:00:00]} 7. f4 {[%emt 0:00:09]} c5 {[%emt 0:00:17]} 8. Nf3 {[%emt 0:00:37]} Nc6 {[%emt 0:00:16]} 9. Nb5 {[%emt 0:02:39]} O-O {[%emt 0:03:06]} 10. Qd2 {[%emt 0:08:17]} a6 {[%emt 0:01:38]} 11. Nd6 {[%emt 0:03:30]} cxd4 {[%emt 0:00:11]} 12. O-O-O {[%emt 0:04:06]} f6 {[%emt 0:01:55]} 13. Re1 {[%emt 0:05:51]} fxe5 {[%emt 0:00:36]} 14. fxe5 {[%emt 0:01:21]} Rxf3 {[%emt 0:12:16]} 15. gxf3 {[%emt 0:03:02]} Ndxe5 {[%emt 0:00:08]} 16. Nxc8 {[%emt 0:16:02]} Rxc8 {[%emt 0:00:06]} 17. Bh3 {[%emt 0:15:38]} Rf8 {[%emt 0:05:51]} 18. Rhf1 {[%emt 0:08:04]} Qc5 {[%emt 0:05:15]} 19. Bxe6+ {[%emt 0:01:19]} Kh8 {[%emt 0:00:05]} 20. Re2 {[%emt 0:21:43]} d3 {[%emt 0:03:16]} 21. Rg2 {[%emt 0:00:54]} Nb4 {[%emt 0:01:07]} 22. c3 {[%emt 0:05:33]} d4 {[%emt 0:12:25]} 23. Kb1 {[%emt 0:01:15]} Rxf3 {[%emt 0:02:17]} 24. Rxf3 {[%emt 0:00:46]} Nxf3 {[%emt 0:00:07]} 25. Qf4 {[%emt 0:00:38]} 1-0

[Event "GER-chT Youth Countries 2020"]
[Site "Berlin"]
[Date "2020.10.04"]
[Round "7"]
[White "Nitsche, Nikolai"]
[Black "Aumueller, Naum"]
[Result "1-0"]
[ECO "A00"]
[WhiteElo "1721"]
[BlackElo "1690"]
[Annotator "NA"]
[PlyCount "101"]
[EventDate "2020.09.30"]
[EventType "team-tourn"]
[EventRounds "7"]
[EventCountry "GER"]
[SourceTitle "playchess.com"]
[Source "ChessBase"]
[SourceQuality "1"]
[TimeControl "30/5400+30:0"]

1. g3 {[%emt 0:00:00]} e5 {[%emt 0:00:00]} 2. Bg2 {[%emt 0:00:00]} Nf6 {[%emt 0:00:46]} 3. d3 {[%emt 0:00:15]} d5 {[%emt 0:00:43]} 4. Nf3 {[%emt 0:00:58]} Bd6 {[%emt 0:01:20]} 5. O-O {[%emt 0:00:43]} c6 {[%emt 0:01:11]} 6. b3 {[%emt 0:01:11]} O-O {[%emt 0:02:16]} 7. Bb2 {[%emt 0:01:32]} Nbd7 {[%emt 0:01:41]} 8. c4 {[%emt 0:02:46]} Re8 {[%emt 0:04:42]} 9. Nc3 {[%emt 0:01:46]} d4 {[%emt 0:05:54]} 10. Nb1 {[%emt 0:02:53]} c5 {[%emt 0:05:05]} 11. Nbd2 {[%emt 0:01:24]} Nf8 {[%emt 0:04:19]} 12. e4 {[%emt 0:04:50]} Ng4 {[%emt 0:09:23]} 13. h3 {[%emt 0:05:57]} Nh6 {[%emt 0:00:37]} 14. Ne1 {[%emt 0:08:35]} Ng6 {[%emt 0:05:33]} 15. Bc1 {[%emt 0:04:52]} f5 {[%emt 0:05:20]} 16. exf5 {[%emt 0:05:10]} Nxf5 {[%emt 0:01:33]} 17. Bd5+ {[%emt 0:03:37]} Kh8 {[%emt 0:01:58]} 18. Qh5 {[%emt 0:01:27]} Rf8 {[%emt 0:05:00]} 19. Ne4 {[%emt 0:16:00]} Be7 {[%emt 0:07:33]} 20. Nf3 {[%emt 0:02:39]} Rb8 {[%emt 0:03:59]} 21. Neg5 {[%emt 0:03:41]} Nh6 {[%emt 0:01:35]} 22. Ne6 {[%emt 0:08:58]} Bxe6 {[%emt 0:00:40]} 23. Bxe6 {[%emt 0:00:06]} Qd6 {[%emt 0:04:24]} 24. Bd5 {[%emt 0:03:56]} Rf5 {[%emt 0:03:13]} 25. Bg5 {[%emt 0:01:06]} b6 {[%emt 0:03:41]} 26. Be4 {[%emt 0:00:52]} Rff8 {[%emt 0:03:56]} 27. Bxg6 {[%emt 0:04:15]} hxg6 {[%emt 0:01:03]} 28. Bxe7 {[%emt 0:00:07]} Qxe7 {[%emt 0:00:32]} 29. Qxe5 {[%emt 0:00:07]} Qd7 {[%emt 0:00:48]} 30. Nh4 {[%emt 0:01:37]} Kh7 {[%emt 0:04:24]} 31. Qg5 {[%emt 1:34:11]} Rf6 {[%emt 1:32:04]} 32. Kg2 {[%emt 0:00:34]} Rbf8 {[%emt 0:01:16]} 33. Rae1 {[%emt 0:00:51]} Qb7+ {[%emt 0:01:24]} 34. f3 {[%emt 0:00:37]} Nf7 {[%emt 0:02:04]} 35. Qg4 {[%emt 0:01:46]} Nh6 {[%emt 0:03:33]} 36. Qe4 {[%emt 0:03:14]} Qf7 {[%emt 0:00:51]} 37. f4 {[%emt 0:00:19]} Nf5 {[%emt 0:01:05]} 38. Nxf5 {[%emt 0:00:19]} gxf5 {[%emt 0:00:16]} 39. Qe7 {[%emt 0:00:20]} Qg6 {[%emt 0:01:02]} 40. Re5 {[%emt 0:02:21]} R8f7 {[%emt 0:02:02]} 41. Qe8 {[%emt 0:00:26]} Qh5 {[%emt 0:01:08]} 42. Re6 {[%emt 0:03:55]} Rxe6 {[%emt 0:00:00]} 43. Qxe6 {[%emt 0:00:00]} Rf6 {[%emt 0:00:00]} 44. Qe5 {[%emt 0:00:00]} Rh6 {[%emt 0:00:00]} 45. Rh1 {[%emt 0:00:00]} Qf7 {[%emt 0:00:00]} 46. Re1 {[%emt 0:00:00]} Qh5 {[%emt 0:00:00]} 47. h4 {[%emt 0:00:00]} Qg4 {[%emt 0:00:00]} 48. Qe2 {[%emt 0:00:00]} Qg6 {[%emt 0:00:00]} 49. Qe7 {[%emt 0:00:00]} a5 {[%emt 0:00:00]} 50. Qg5 {[%emt 0:00:00]} Qc6+ {[%emt 0:00:00]} 51. Kf2 {[%emt 0:00:00]} 1-0

[Event "GER-chT Youth Countries 2020"]
[Site "Berlin"]
[Date "2020.10.04"]
[Round "7"]
[White "Hoppstaedter, Daniel"]
[Black "Tovmasyan, Minas"]
[Result "0-1"]
[ECO "D37"]
[WhiteElo "1712"]
[BlackElo "1658"]
[Annotator "NA"]
[PlyCount "73"]
[EventDate "2020.09.30"]
[EventType "team-tourn"]
[EventRounds "7"]
[EventCountry "GER"]
[SourceTitle "playchess.com"]
[Source "ChessBase"]
[SourceQuality "1"]
[TimeControl "30/5400+30:0"]

1. d4 {[%emt 0:00:00]} Nf6 {[%emt 0:00:00]} 2. Nf3 {[%emt 0:00:00]} d5 {[%emt 0:00:11]} 3. c4 {[%emt 0:00:00]} e6 {[%emt 0:00:55]} 4. Nc3 {[%emt 0:00:23]} Be7 {[%emt 0:00:22]} 5. cxd5 {[%emt 0:01:19]} exd5 {[%emt 0:00:14]} 6. Bg5 {[%emt 0:01:17]} c6 {[%emt 0:08:28]} 7. Qc2 {[%emt 0:03:07]} O-O {[%emt 0:01:55]} 8. e3 {[%emt 0:00:13]} Nbd7 {[%emt 0:08:57]} 9. Bd3 {[%emt 0:02:09]} h6 {[%emt 0:03:36]} 10. Bxf6 {[%emt 0:04:49]} Nxf6 {[%emt 0:01:37]} 11. Ne5 {[%emt 0:00:33]} Ng4 {[%emt 0:14:15]} 12. Nxg4 {[%emt 0:04:45]} Bxg4 {[%emt 0:00:02]} 13. f3 {[%emt 0:02:17]} Be6 {[%emt 0:10:48]} 14. O-O {[%emt 0:02:59]} c5 {[%emt 0:14:14]} 15. Rfe1 {[%emt 0:05:52]} cxd4 {[%emt 0:05:16]} 16. exd4 {[%emt 0:00:53]} Bf6 {[%emt 0:00:31]} 17. Rad1 {[%emt 0:15:48]} Bxd4+ {[%emt 0:01:43]} 18. Kh1 {[%emt 0:00:14]} Qf6 {[%emt 0:03:48]} 19. Ne2 {[%emt 0:14:27]} Bb6 {[%emt 0:02:09]} 20. f4 {[%emt 0:00:51]} Rac8 {[%emt 0:10:06]} 21. Qb1 {[%emt 0:01:32]} d4 {[%emt 0:06:29]} 22. Be4 {[%emt 0:03:00]} Rc7 {[%emt 0:01:04]} 23. f5 {[%emt 0:03:06]} Bc4 {[%emt 0:02:51]} 24. Nf4 {[%emt 0:01:28]} Rd8 {[%emt 0:01:03]} 25. b3 {[%emt 0:00:28]} Ba6 {[%emt 0:01:20]} 26. Nd5 {[%emt 0:00:43]} Rxd5 {[%emt 0:00:12]} 27. Bxd5 {[%emt 0:00:08]} Rd7 {[%emt 0:00:43]} 28. Re8+ {[%emt 0:00:44]} Kh7 {[%emt 0:00:01]} 29. Qe4 {[%emt 0:01:02]} d3 {[%emt 0:00:50]} 30. Rf8 {[%emt 0:04:00]} Bc5 {[%emt 0:00:29]} 31. Rc8 {[%emt 1:30:18]} b6 {[%emt 1:30:24]} 32. Qe8 {[%emt 0:00:14]} Bxc8 {[%emt 0:00:18]} 33. Be4 {[%emt 0:03:01]} Re7 {[%emt 0:00:46]} 34. Qa4 {[%emt 0:00:30]} Bxf5 {[%emt 0:00:24]} 35. Bxf5+ {[%emt 0:01:28]} Qxf5 {[%emt 0:00:05]} 36. Qb5 {[%emt 0:00:08]} d2 {[%emt 0:00:26]} 37. Re1 0-1

[Event "GER-chT Youth Countries 2020"]
[Site "Berlin"]
[Date "2020.10.04"]
[Round "7"]
[White "Bildat, Emilia"]
[Black "Hagenbeck-Huebert, Ben"]
[Result "1/2-1/2"]
[ECO "A20"]
[WhiteElo "1704"]
[BlackElo "1749"]
[Annotator "NA"]
[PlyCount "52"]
[EventDate "2020.09.30"]
[EventType "team-tourn"]
[EventRounds "7"]
[EventCountry "GER"]
[SourceTitle "playchess.com"]
[Source "ChessBase"]
[SourceQuality "1"]
[TimeControl "30/5400+30:0"]

1. c4 {[%emt 0:00:00]} e5 {[%emt 0:00:00]} 2. g3 {[%emt 0:00:00]} Nc6 {[%emt 0:00:24]} 3. Bg2 {[%emt 0:00:20]} f5 {[%emt 0:01:41]} 4. d3 {[%emt 0:02:46]} Nf6 {[%emt 0:01:46]} 5. Nc3 {[%emt 0:00:28]} Bb4 {[%emt 0:00:55]} 6. Bd2 {[%emt 0:02:17]} Bxc3 {[%emt 0:01:41]} 7. Bxc3 {[%emt 0:01:32]} d6 {[%emt 0:01:50]} 8. e3 {[%emt 0:01:17]} O-O {[%emt 0:01:03]} 9. Ne2 {[%emt 0:01:00]} Qe8 {[%emt 0:01:51]} 10. O-O {[%emt 0:02:52]} Qh5 {[%emt 0:02:44]} 11. Qd2 {[%emt 0:03:46]} Ng4 {[%emt 0:08:34]} 12. h3 {[%emt 0:01:53]} Nf6 {[%emt 0:00:39]} 13. b4 {[%emt 0:05:45]} f4 {[%emt 0:16:59]} 14. exf4 {[%emt 0:14:41]} Bxh3 {[%emt 0:01:14]} 15. f3 {[%emt 0:03:52]} Bxg2 {[%emt 0:18:31]} 16. Kxg2 {[%emt 0:00:14]} exf4 {[%emt 0:01:30]} 17. Nxf4 {[%emt 0:01:05]} Qg5 {[%emt 0:01:02]} 18. Ne6 {[%emt 0:06:31]} Qxd2+ {[%emt 0:00:46]} 19. Bxd2 {[%emt 0:00:09]} Rf7 {[%emt 0:02:26]} 20. f4 {[%emt 0:02:55]} Re7 {[%emt 0:02:44]} 21. Rae1 {[%emt 0:02:22]} Rae8 {[%emt 0:01:09]} 22. Ng5 {[%emt 0:02:50]} h6 {[%emt 0:05:36]} 23. Rxe7 {[%emt 0:03:14]} Rxe7 {[%emt 0:00:26]} 24. Nf3 {[%emt 0:00:31]} Ng4 {[%emt 0:04:00]} 25. Re1 {[%emt 0:02:09]} Rxe1 {[%emt 0:01:39]} 26. Nxe1 {[%emt 0:01:35]} Nf6 {[%emt 0:02:19]} 1/2-1/2

[Event "GER-chT Youth Countries 2020"]
[Site "Berlin"]
[Date "2020.10.04"]
[Round "7"]
[White "Werner, Rosalie"]
[Black "Sommer, Justus"]
[Result "0-1"]
[ECO "C55"]
[WhiteElo "1688"]
[BlackElo "1845"]
[Annotator "NA"]
[PlyCount "80"]
[EventDate "2020.09.30"]
[EventType "team-tourn"]
[EventRounds "7"]
[EventCountry "GER"]
[SourceTitle "playchess.com"]
[Source "ChessBase"]
[SourceQuality "1"]
[TimeControl "30/5400+30:0"]

1. e4 {[%emt 0:00:00]} e5 {[%emt 0:00:00]} 2. Nf3 {[%emt 0:00:00]} Nc6 {[%emt 0:00:00]} 3. Bc4 {[%emt 0:00:00]} Nf6 {[%emt 0:00:00]} 4. d4 {[%emt 0:00:00]} exd4 {[%emt 0:00:12]} 5. e5 {[%emt 0:00:00]} d5 {[%emt 0:00:07]} 6. Bb5 {[%emt 0:00:03]} Ne4 {[%emt 0:00:23]} 7. Nxd4 {[%emt 0:01:05]} Bc5 {[%emt 0:00:54]} 8. Bxc6+ {[%emt 0:01:33]} bxc6 {[%emt 0:00:37]} 9. O-O {[%emt 0:00:45]} O-O {[%emt 0:01:21]} 10. Be3 {[%emt 0:06:36]} Bxd4 {[%emt 0:11:07]} 11. Bxd4 {[%emt 0:04:08]} c5 {[%emt 0:00:17]} 12. Be3 {[%emt 0:01:29]} d4 {[%emt 0:00:16]} 13. Bc1 {[%emt 0:04:41]} Qe7 {[%emt 0:07:04]} 14. f3 {[%emt 0:02:27]} Ng5 {[%emt 0:00:14]} 15. f4 {[%emt 0:00:19]} Ne4 {[%emt 0:00:31]} 16. Nd2 {[%emt 0:00:49]} Nxd2 {[%emt 0:01:10]} 17. Qxd2 {[%emt 0:00:32]} f6 {[%emt 0:00:55]} 18. exf6 {[%emt 0:01:49]} Qxf6 {[%emt 0:00:19]} 19. b3 {[%emt 0:03:04]} Ba6 {[%emt 0:01:15]} 20. Rf2 {[%emt 0:00:39]} c4 {[%emt 0:03:51]} 21. Ba3 {[%emt 0:05:05]} c3 {[%emt 0:01:39]} 22. Qd1 {[%emt 0:01:06]} Rfd8 {[%emt 0:06:00]} 23. Qf3 {[%emt 0:04:14]} Rac8 {[%emt 0:04:40]} 24. Rd1 {[%emt 0:08:43]} c5 {[%emt 0:01:26]} 25. Qe4 {[%emt 0:02:27]} Kh8 {[%emt 0:04:07]} 26. g3 {[%emt 0:07:14]} Bb5 {[%emt 0:02:01]} 27. Bc1 {[%emt 0:01:48]} a5 {[%emt 0:09:54]} 28. Qf3 {[%emt 0:03:38]} Re8 {[%emt 0:01:50]} 29. Qb7 {[%emt 0:06:06]} Ba6 {[%emt 0:04:46]} 30. Qf3 {[%emt 0:00:44]} Re7 {[%emt 0:01:24]} 31. Qd5 {[%emt 1:39:45]} Qb6 {[%emt 1:36:20]} 32. h4 {[%emt 0:02:54]} Rce8 {[%emt 0:01:10]} 33. Kh2 {[%emt 0:01:31]} Bb7 {[%emt 0:03:46]} 34. Qc4 {[%emt 0:05:29]} Qc6 {[%emt 0:06:00]} 35. Qf1 {[%emt 0:00:23]} Ba6 {[%emt 0:06:47]} 36. Qg2 {[%emt 0:02:10]} Qxg2+ {[%emt 0:01:15]} 37. Kxg2 {[%emt 0:00:59]} Bb7+ {[%emt 0:00:52]} 38. Kh3 {[%emt 0:01:24]} Re2 {[%emt 0:00:58]} 39. Rdf1 {[%emt 0:00:51]} Ba6 {[%emt 0:02:47]} 40. Ba3 {[%emt 0:04:33]} Rxc2 {[%emt 0:01:36]} 0-1

[Event "GER-chT Youth Countries 2020"]
[Site "Berlin"]
[Date "2020.10.04"]
[Round "7"]
[White "Trunz, Michelle"]
[Black "Schwenke, Mia"]
[Result "1-0"]
[ECO "D60"]
[WhiteElo "1662"]
[BlackElo "1265"]
[Annotator "NA"]
[PlyCount "151"]
[EventDate "2020.09.30"]
[EventType "team-tourn"]
[EventRounds "7"]
[EventCountry "GER"]
[SourceTitle "playchess.com"]
[Source "ChessBase"]
[SourceQuality "1"]
[TimeControl "30/5400+30:0"]

1. d4 {[%emt 0:00:00]} d5 {[%emt 0:00:00]} 2. c4 {[%emt 0:00:00]} e6 {[%emt 0:00:00]} 3. Nc3 {[%emt 0:00:00]} Nf6 {[%emt 0:00:00]} 4. Bg5 {[%emt 0:00:45]} Be7 {[%emt 0:00:12]} 5. e3 {[%emt 0:00:06]} O-O {[%emt 0:00:18]} 6. Nf3 {[%emt 0:00:13]} Nbd7 {[%emt 0:00:24]} 7. Bd3 {[%emt 0:00:45]} dxc4 {[%emt 0:02:03]} 8. Bxc4 {[%emt 0:00:19]} c6 {[%emt 0:01:14]} 9. O-O {[%emt 0:00:17]} b5 {[%emt 0:00:26]} 10. Bd3 {[%emt 0:00:32]} a6 {[%emt 0:01:26]} 11. a3 {[%emt 0:00:36]} c5 {[%emt 0:10:21]} 12. Ne4 {[%emt 0:02:13]} c4 {[%emt 0:04:37]} 13. Bc2 {[%emt 0:00:57]} Bb7 {[%emt 0:01:34]} 14. Ng3 {[%emt 0:01:04]} h6 {[%emt 0:02:54]} 15. Bxf6 {[%emt 0:01:25]} Nxf6 {[%emt 0:00:32]} 16. Qe2 {[%emt 0:04:45]} Qb6 {[%emt 0:04:58]} 17. Ne5 {[%emt 0:00:50]} Rfd8 {[%emt 0:03:13]} 18. Nh5 {[%emt 0:00:46]} g6 {[%emt 0:07:54]} 19. Bxg6 {[%emt 0:17:14]} fxg6 {[%emt 0:04:39]} 20. Nxg6 {[%emt 0:03:15]} Kf7 {[%emt 0:17:57]} 21. Ne5+ {[%emt 0:05:42]} Kf8 {[%emt 0:08:13]} 22. Nxf6 {[%emt 0:00:34]} Bxf6 {[%emt 0:01:12]} 23. f4 {[%emt 0:02:35]} Ke7 {[%emt 0:05:07]} 24. Qh5 {[%emt 0:02:19]} Rf8 {[%emt 0:03:13]} 25. Ng6+ {[%emt 0:01:59]} Kd7 {[%emt 0:01:28]} 26. Nxf8+ {[%emt 0:00:55]} Rxf8 {[%emt 0:00:09]} 27. Qxh6 {[%emt 0:02:19]} Be7 {[%emt 0:02:17]} 28. Rf2 {[%emt 0:02:28]} Qc6 {[%emt 0:01:25]} 29. Qh5 {[%emt 0:01:52]} Rg8 {[%emt 0:03:16]} 30. d5 {[%emt 0:01:41]} exd5 {[%emt 0:01:40]} 31. Rd1 {[%emt 1:30:24]} Qe6 {[%emt 1:31:39]} 32. Re2 {[%emt 0:05:29]} Kc6 {[%emt 0:03:13]} 33. Qf3 {[%emt 0:02:19]} Kb6 {[%emt 0:00:44]} 34. f5 Qe5 {[%emt 0:01:22]} 35. Qf4 {[%emt 0:08:15]} Qf6 {[%emt 0:01:46]} 36. Qd4+ {[%emt 0:01:28]} Qxd4 {[%emt 0:00:27]} 37. exd4 {[%emt 0:00:18]} Bd6 {[%emt 0:01:12]} 38. f6 {[%emt 0:01:07]} Rf8 {[%emt 0:01:42]} 39. Rf1 {[%emt 0:00:25]} Bc8 {[%emt 0:00:53]} 40. f7 {[%emt 0:00:28]} Kc6 {[%emt 0:01:50]} 41. h3 {[%emt 0:00:36]} Bd7 {[%emt 0:02:27]} 42. g4 {[%emt 0:00:29]} Kc7 {[%emt 0:00:00]} 43. Kg2 {[%emt 0:00:00]} a5 {[%emt 0:00:00]} 44. Ref2 {[%emt 0:00:00]} Be7 {[%emt 0:00:00]} 45. Kg3 {[%emt 0:00:00]} a4 {[%emt 0:00:00]} 46. h4 {[%emt 0:00:00]} Bd6+ {[%emt 0:00:00]} 47. Kh3 {[%emt 0:00:00]} Be7 {[%emt 0:00:00]} 48. h5 {[%emt 0:00:00]} Bg5 {[%emt 0:00:00]} 49. Re2 {[%emt 0:00:00]} Kd6 {[%emt 0:00:00]} 50. Re5 {[%emt 0:00:00]} Be7 {[%emt 0:00:00]} 51. h6 {[%emt 0:00:00]} Bc8 {[%emt 0:00:00]} 52. h7 {[%emt 0:00:00]} Rh8 {[%emt 0:00:00]} 53. Rh5 {[%emt 0:00:00]} Bf8 {[%emt 0:00:00]} 54. Rf6+ {[%emt 0:00:00]} Ke7 {[%emt 0:00:00]} 55. Rf3 {[%emt 0:00:00]} Be6 {[%emt 0:00:00]} 56. Kg3 {[%emt 0:00:00]} Bxf7 {[%emt 0:00:00]} 57. Re5+ {[%emt 0:00:00]} Be6 {[%emt 0:00:13]} 58. Rfe3 {[%emt 0:00:00]} Kd7 {[%emt 0:00:43]} 59. Rxe6 {[%emt 0:00:00]} Bd6+ {[%emt 0:00:28]} 60. Kh4 {[%emt 0:00:00]} Rxh7+ {[%emt 0:00:27]} 61. Kg5 {[%emt 1:14:20]} Rg7+ {[%emt 1:30:39]} 62. Kf5 {[%emt 0:03:43]} Rf7+ {[%emt 0:00:24]} 63. Rf6 {[%emt 0:00:48]} Rxf6+ {[%emt 0:01:27]} 64. Kxf6 {[%emt 0:00:09]} Kc6 {[%emt 0:00:36]} 65. Re6 {[%emt 0:00:08]} Kd7 {[%emt 0:00:18]} 66. g5 {[%emt 0:00:22]} b4 {[%emt 0:00:52]} 67. g6 {[%emt 0:01:12]} Bf8 {[%emt 0:01:44]} 68. Re3 {[%emt 0:00:39]} bxa3 {[%emt 0:00:39]} 69. bxa3 {[%emt 0:00:11]} Kc6 {[%emt 0:00:39]} 70. Kf7 {[%emt 0:00:49]} Bh6 {[%emt 0:00:15]} 71. Rh3 {[%emt 0:00:11]} Kb5 {[%emt 0:00:28]} 72. Rxh6 {[%emt 0:00:06]} c3 {[%emt 0:00:18]} 73. Rh1 {[%emt 0:00:33]} Kc4 {[%emt 0:00:11]} 74. g7 {[%emt 0:00:11]} Kb3 {[%emt 0:00:11]} 75. g8=Q {[%emt 0:00:22]} c2 {[%emt 0:00:12]} 76. Qc8 {[%emt 0:00:11]} 1-0

[Event "GER-chT Youth Countries 2020"]
[Site "Berlin"]
[Date "2020.10.04"]
[Round "7"]
[White "Jacoby, Angelina"]
[Black "Nguyen, Ha Thanh"]
[Result "0-1"]
[ECO "A15"]
[WhiteElo "1630"]
[BlackElo "2019"]
[Annotator "ChessBase"]
[PlyCount "112"]
[EventDate "2020.09.30"]
[EventType "team-tourn"]
[EventRounds "7"]
[EventCountry "GER"]
[SourceTitle "playchess.com"]
[Source "ChessBase"]
[SourceQuality "1"]
[TimeControl "30/5400+30:0"]

1. c4 {[%emt 0:00:00]} Nf6 {[%emt 0:00:00]} 2. g3 {[%emt 0:00:00]} g6 {[%emt 0:00:14]} 3. Bg2 {[%emt 0:00:12]} Bg7 {[%emt 0:00:31]} 4. Nc3 {[%emt 0:01:48]} c6 {[%emt 0:04:52]} 5. e3 {[%emt 0:05:30]} O-O {[%emt 0:02:44]} 6. Nge2 {[%emt 0:00:42]} Na6 {[%emt 0:03:30]} 7. O-O {[%emt 0:01:56]} Nc7 {[%emt 0:04:38]} 8. d4 {[%emt 0:03:14]} d5 {[%emt 0:01:41]} 9. cxd5 {[%emt 0:02:19]} cxd5 {[%emt 0:00:07]} 10. b3 {[%emt 0:03:43]} b5 {[%emt 0:09:48]} 11. Bb2 {[%emt 0:05:46]} Bb7 {[%emt 0:04:52]} 12. Nf4 {[%emt 0:02:23]} Rb8 {[%emt 0:13:38]} 13. Nd3 {[%emt 0:08:09]} Nd7 {[%emt 0:05:34]} 14. Ne2 {[%emt 0:06:22]} Re8 {[%emt 0:06:50]} 15. Rc1 {[%emt 0:09:05]} e6 {[%emt 0:09:06]} 16. Nb4 {[%emt 0:04:17]} Nb6 {[%emt 0:05:11]} 17. Nf4 {[%emt 0:04:25]} a5 {[%emt 0:04:57]} 18. Nc6 {[%emt 0:03:05]} Bxc6 {[%emt 0:00:12]} 19. Rxc6 {[%emt 0:00:06]} Qd7 {[%emt 0:00:40]} 20. Rc2 {[%emt 0:00:40]} Na6 {[%emt 0:04:22]} 21. Ba3 {[%emt 0:03:58]} Rec8 {[%emt 0:02:11]} 22. Nd3 {[%emt 0:01:46]} b4 {[%emt 0:01:04]} 23. Bb2 {[%emt 0:00:20]} Rxc2 {[%emt 0:01:52]} 24. Qxc2 {[%emt 0:00:05]} Rc8 {[%emt 0:00:05]} 25. Qd2 {[%emt 0:00:22]} Bf8 {[%emt 0:00:42]} 26. Rc1 {[%emt 0:00:39]} Rxc1+ {[%emt 0:00:29]} 27. Qxc1 {[%emt 0:00:14]} Qc8 {[%emt 0:02:43]} 28. Ne5 {[%emt 0:08:42]} Bd6 {[%emt 0:03:58]} 29. Qxc8+ {[%emt 0:04:56]} Nxc8 {[%emt 0:00:03]} 30. Nc6 {[%emt 0:00:27]} Bc7 {[%emt 0:00:59]} 31. f3 {[%emt 1:35:13]} Kf8 {[%emt 1:32:57]} 32. e4 {[%emt 0:03:56]} Ne7 {[%emt 0:01:24]} 33. Na7 {[%emt 0:05:39]} Bb6 {[%emt 0:00:47]} 34. Nb5 {[%emt 0:00:20]} dxe4 {[%emt 0:01:17]} 35. fxe4 {[%emt 0:00:08]} e5 {[%emt 0:00:22]} 36. Kf1 {[%emt 0:00:14]} exd4 {[%emt 0:00:11]} 37. Nxd4 {[%emt 0:01:08]} Nc5 {[%emt 0:00:58]} 38. Ke2 {[%emt 0:01:19]} Ke8 {[%emt 0:01:18]} 39. e5 {[%emt 0:02:44]} Ne6 {[%emt 0:01:14]} 40. Nxe6 {[%emt 0:01:28]} fxe6 {[%emt 0:00:05]} 41. Kd3 {[%emt 0:00:47]} Nf5 {[%emt 0:01:41]} 42. Bh3 {[%emt 0:00:00]} Kd7 {[%emt 0:00:00]} 43. Bxf5 {[%emt 0:00:00]} gxf5 {[%emt 0:00:00]} 44. Bc1 {[%emt 0:00:00]} Kc6 {[%emt 0:00:00]} 45. Kc4 {[%emt 0:00:00]} Bg1 {[%emt 0:00:00]} 46. h3 {[%emt 0:00:00]} h5 {[%emt 0:00:00]} 47. h4 {[%emt 0:00:00]} Bf2 {[%emt 0:00:00]} 48. Bf4 {[%emt 0:00:00]} Be1 {[%emt 0:00:00]} 49. Kd4 {[%emt 0:00:00]} Kb5 {[%emt 0:00:00]} 50. Ke3 {[%emt 0:00:00]} Bc3 {[%emt 0:00:00]} 51. Kd3 {[%emt 0:00:22]} Ba1 52. Ke2 Kc6 {[%emt 0:00:00]} 53. Kd3 {[%emt 0:01:40]} Kd5 {[%emt 0:00:00]} 54. Bg5 {[%emt 0:01:37]} Bxe5 {[%emt 0:00:00]} 55. Bd8 {[%emt 0:00:19]} Bxg3 {[%emt 0:00:00]} 56. Bxa5 {[%emt 0:00:10]} Bd6 {[%emt 0:00:00]} 0-1

[Event "GER-chT Youth Countries 2020"]
[Site "Berlin"]
[Date "2020.10.04"]
[Round "7"]
[White "Voigt, Anastasia"]
[Black "Besou, Hussain"]
[Result "1/2-1/2"]
[ECO "C55"]
[WhiteElo "1562"]
[BlackElo "1825"]
[Annotator "NA"]
[PlyCount "68"]
[EventDate "2020.09.30"]
[EventType "team-tourn"]
[EventRounds "7"]
[EventCountry "GER"]
[SourceTitle "playchess.com"]
[Source "ChessBase"]
[SourceQuality "1"]
[TimeControl "30/5400+30:0"]

1. e4 {[%emt 0:00:00]} e5 {[%emt 0:00:00]} 2. Nf3 {[%emt 0:00:00]} Nc6 {[%emt 0:00:00]} 3. Bc4 {[%emt 0:00:00]} Nf6 {[%emt 0:00:00]} 4. d3 {[%emt 0:00:00]} h6 {[%emt 0:00:00]} 5. c3 {[%emt 0:00:17]} d6 {[%emt 0:00:02]} 6. Nbd2 {[%emt 0:00:45]} g6 {[%emt 0:00:19]} 7. Nf1 {[%emt 0:01:44]} Bg7 {[%emt 0:00:06]} 8. Ng3 {[%emt 0:02:43]} O-O {[%emt 0:00:21]} 9. O-O {[%emt 0:01:00]} Na5 {[%emt 0:00:25]} 10. Bb5 {[%emt 0:01:00]} a6 {[%emt 0:00:05]} 11. Ba4 {[%emt 0:00:18]} b5 {[%emt 0:00:06]} 12. Bc2 {[%emt 0:00:16]} c5 {[%emt 0:00:05]} 13. b4 {[%emt 0:05:21]} cxb4 {[%emt 0:01:39]} 14. cxb4 {[%emt 0:00:36]} Nc6 {[%emt 0:00:05]} 15. a3 {[%emt 0:00:19]} Bg4 {[%emt 0:00:43]} 16. Bb2 {[%emt 0:01:07]} Rc8 {[%emt 0:00:43]} 17. Bb3 {[%emt 0:01:38]} Nd4 {[%emt 0:01:14]} 18. Bxd4 {[%emt 0:02:33]} exd4 19. h3 {[%emt 0:02:22]} Bxf3 {[%emt 0:00:30]} 20. Qxf3 {[%emt 0:00:14]} Rc3 {[%emt 0:00:06]} 21. Qd1 {[%emt 0:01:51]} Nd7 {[%emt 0:06:28]} 22. Ne2 {[%emt 0:03:11]} Rc8 {[%emt 0:00:11]} 23. Rc1 {[%emt 0:02:35]} Nb6 {[%emt 0:02:17]} 24. Nf4 {[%emt 0:02:18]} Kh7 {[%emt 0:02:18]} 25. Nd5 {[%emt 0:00:54]} Nxd5 {[%emt 0:01:10]} 26. Bxd5 {[%emt 0:01:13]} Rc3 {[%emt 0:00:06]} 27. Rxc3 {[%emt 0:09:15]} dxc3 {[%emt 0:00:10]} 28. Qe2 Qb6 29. Rc1 {[%emt 0:09:32]} f5 {[%emt 0:04:00]} 30. Kf1 {[%emt 0:02:33]} fxe4 {[%emt 0:01:04]} 31. dxe4 {[%emt 1:31:28]} a5 {[%emt 1:40:14]} 32. f3 {[%emt 0:11:28]} Rc8 {[%emt 0:09:48]} 33. Bb3 axb4 {[%emt 0:00:12]} 34. axb4 {[%emt 0:02:09]} Qd4 1/2-1/2